bitfinex/quotes_ETHUSD_20240816
["timestamp","ask_amount","ask_price","bid_price","bid_amount"]
[1723832122684,3.82008,2617.8,2617.2,2.5950491]
[1723832122685,7.64011,2617.8,2617.2,2.5950491]
[1723832122891,3.82026,2617.7,2617.2,2.5950491]
[1723832123040,3.81907,2618.5,2617.2,2.5950491]
[1723832123041,3.82029,2617.6,2617.2,2.2669]
[1723832123246,3.82029,2617.6,2616.8,2.3464]
[1723832123247,7.6419,2617.2,2616.8,2.3464]
[1723832123569,3.82091,2617.2,2616.8,2.3464]
[1723832124495,0.382029,2617.5,2616.8,2.3464]
[1723832124496,3.82056,2617.5,2616.8,2.3464]
[1723832124668,3.82056,2617.5,2616.9,0.998949]
[1723832124849,3.82036,2617.6,2616.9,0.998949]
[1723832124850,3.8206,2617.4,2616.9,0.998949]
[1723832125086,3.8206,2617.4,2616.8,2.3464]
[1723832125087,7.64131,2617.4,2616.8,2.3464]
[1723832125239,3.8206,2617.4,2616.8,2.3464]
[1723832125639,3.82037,2617.6,2616.8,2.3464]
[1723832125841,3.0,2617.9,2617.1,3.82102]
[1723832125842,3.82008,2617.8,2617.1,3.82102]
[1723832126070,2.3697,2618.6,2617.2,2.2864]
[1723832126071,3.81979,2618.0,2617.2,2.2864]
[1723832126264,3.81979,2618.0,2617.3,4.43145]
[1723832126481,3.82,2617.8,2617.3,0.61073]
[1723832126695,3.82024,2617.7,2617.2,2.2864]
[1723832126871,3.81979,2618.0,2617.2,2.2864]
[1723832127182,3.82047,2617.5,2617.2,2.2864]
[1723832127385,3.82019,2617.7,2617.2,2.2864]
[1723832127569,3.81994,2617.9,2617.2,6.10719]
[1723832128086,3.82001,2617.8,2617.2,3.279212]
[1723832128528,3.82024,2617.7,2617.3,0.06598631]
[1723832128854,3.82029,2617.6,2617.2,2.2864]
[1723832129059,3.82029,2617.6,2617.4,0.06589271]
[1723832129297,3.82029,2617.6,2617.2,2.2864]
[1723832129298,3.82029,2617.6,2617.3,0.06598631]
[1723832129498,3.82029,2617.6,2617.5,0.06579913]
[1723832129706,3.82025,2617.7,2617.4,0.06589271]
[1723832129916,3.82001,2617.8,2617.5,0.06579913]
[1723832130201,10.63875,2618.3,2617.5,3.82035]
[1723832130353,3.81904,2618.5,2617.7,2.3611]
[1723832130560,3.81877,2618.7,2618.0,3.81969]
[1723832130757,8.7853,2619.4,2617.4,4.20392]
[1723832130758,3.81819,2619.1,2618.4,3.81912]
[1723832130999,3.81819,2619.1,2618.5,0.07636635]
[1723832131205,3.81819,2619.1,2618.5,3.88382365]
[1723832131558,3.8179,2619.3,2618.6,2.2665]
[1723832131856,6.07254,2620.1,2618.7,0.07636138]
[1723832132056,6.07254,2620.1,2618.6,2.33127014]
[1723832132057,3.81834,2619.0,2618.6,2.33127014]
[1723832132394,10.14209,2619.8,2618.7,0.06488251]
[1723832132395,3.81785,2619.3,2618.7,0.06488251]
[1723832132576,3.81796,2619.2,2618.7,0.06488251]
[1723832132757,3.81813,2619.1,2618.7,0.06488251]
[1723832133011,3.81839,2618.9,2618.7,0.06488251]
[1723832133227,3.81777,2619.4,2618.7,0.06488251]
[1723832133228,3.81854,2618.8,2618.7,0.06488251]
[1723832133425,3.81849,2618.9,2618.2,3.81934]
[1723832133725,3.81849,2618.9,2618.7,0.06488251]
[1723832133726,3.81854,2618.8,2618.7,0.06488251]
[1723832133953,3.8191,2618.5,2618.0,2.4727]
[1723832134079,7.63708,2618.8,2618.7,0.06488251]
[1723832134578,3.81914,2618.4,2618.0,2.4727]
[1723832134924,3.81799,2619.2,2618.0,2.4727]
[1723832134925,3.81956,2618.1,2618.0,2.4727]
[1723832135432,3.81886,2618.6,2617.5,2.3567]
[1723832135581,3.82003,2617.8,2617.5,2.3567]
[1723832135989,3.81975,2618.0,2617.5,2.3567]
[1723832136611,3.81986,2617.9,2617.5,2.3567]
[1723832137108,3.81941,2618.2,2617.5,2.3567]
[1723832137313,3.0,2618.5,2617.5,2.3567]
[1723832137314,3.8198,2618.0,2617.5,2.3567]
[1723832137628,3.0,2618.5,2617.5,2.3567]
[1723832137791,3.81951,2618.2,2617.5,6.17711]
[1723832137992,3.81874,2618.7,2617.5,2.3567]
[1723832137993,3.81891,2618.6,2617.5,2.3567]
[1723832138213,3.82022,2617.7,2617.5,2.3567]
[1723832138719,7.64017,2617.8,2617.5,2.3567]
[1723832138923,3.82003,2617.8,2617.5,2.3567]
[1723832139293,3.82029,2617.6,2617.5,2.3567]
[1723832139491,3.82003,2617.8,2617.5,2.3567]
[1723832140095,7.64016,2617.8,2617.5,2.3567]
[1723832140299,3.82003,2617.8,2617.5,2.3567]
[1723832140543,10.13166739,2621.6,2617.5,2.59237]
[1723832140544,3.81858,2618.8,2617.5,2.59237]
[1723832140773,3.82024,2617.7,2617.5,2.3567]
[1723832140912,3.82037,2617.6,2617.1,2.3734]
[1723832141500,3.82024,2617.7,2617.1,2.3734]
[1723832141731,3.82038,2617.6,2617.1,2.992855]
[1723832142027,3.82038,2617.6,2617.1,2.3734]
[1723832142227,3.82045,2617.5,2617.1,2.3734]
[1723832143139,3.81989,2617.9,2617.1,2.3734]
[1723832143140,3.81989,2617.9,2617.1,6.19432]
[1723832143496,3.81989,2617.9,2617.3,3.82068]
[1723832143695,3.82001,2617.8,2617.3,1.00795502]
[1723832143939,3.81989,2617.9,2617.4,0.06436299]
[1723832144727,2.3408,2619.1,2617.9,2.4552]
[1723832144964,3.81829,2619.0,2618.0,0.32190142]
[1723832145108,3.8181,2619.1,2618.0,0.07638142]
[1723832145454,3.8181,2619.1,2618.5,2.4552]
[1723832145814,3.81791,2619.3,2618.6,0.06322073]
[1723832146011,3.81868,2618.7,2618.6,0.06322073]
[1723832146324,3.81824,2619.1,2618.6,0.06322073]
[1723832146502,3.81807,2619.2,2618.6,0.13958533]
[1723832146707,6.6208189,2620.2,2619.1,3.81798]
[1723832146708,3.817,2619.9,2619.1,3.81798]
[1723832147016,0.1298189,2620.2,2619.4,2.3375]
[1723832147017,3.81673,2620.1,2619.4,2.3375]
[1723832147209,3.81694,2619.9,2619.4,2.3375]
[1723832147413,3.9463289,2620.2,2619.5,3.89372983]
[1723832147611,3.9463289,2620.2,2619.5,3.87957287]
[1723832147612,0.1298189,2620.2,2619.5,3.87957287]
[1723832147849,3.9463689,2620.2,2619.5,3.87957287]
[1723832148050,0.1298189,2620.2,2619.6,3.81737]
[1723832148328,0.1298189,2620.2,2619.7,3.81722]
[1723832148640,0.1298189,2620.2,2619.8,3.87884806]
[1723832148955,0.1298189,2620.2,2619.9,6.21733]
[1723832149250,0.1298189,2620.2,2620.0,0.06158124]
[1723832149815,3.81664,2620.1,2620.0,0.06158124]
[1723832150056,7.7629589,2620.2,2619.5,3.81742]
[1723832150256,3.81677,2620.1,2619.4,2.63351]
[1723832150461,3.81695,2619.9,2619.6,0.06149939]
[1723832150664,3.81695,2619.9,2619.4,2.3941]
[1723832150665,3.81716,2619.8,2619.4,2.3941]
[1723832150820,3.81716,2619.8,2619.7,0.06140596]
[1723832151022,3.81716,2619.8,2619.4,2.3941]
[1723832151217,7.63434,2619.8,2619.7,0.06140596]
[1723832151449,7.63434,2619.8,2618.9,3.8183]
[1723832151450,3.81775,2619.4,2618.9,2.3941]
[1723832151656,0.381716,2619.8,2618.9,6.21249]
[1723832151657,3.81745,2619.6,2618.9,6.21249]
[1723832151858,3.81684,2620.0,2618.9,2.3941]
[1723832152071,3.81811,2619.1,2618.9,2.3941]
[1723832152274,3.8179,2619.3,2618.9,2.3941]
[1723832152579,3.8182,2619.1,2618.6,2.3582]
[1723832152729,3.81727,2619.7,2619.0,3.81822]
[1723832153060,3.81727,2619.7,2619.2,2.3582]
[1723832153288,3.81727,2619.7,2618.8,3.81845]
[1723832153289,3.81761,2619.5,2618.8,6.17665]
[1723832153448,3.81731,2619.7,2619.1,3.81809]
[1723832153781,0.1298189,2620.2,2619.6,3.81734]
[1723832153984,3.81673,2620.1,2619.7,2.3603]
[1723832154277,3.81699,2619.9,2619.7,2.3603]
[1723832154436,3.81683,2620.0,2619.7,2.3603]
[1723832154747,0.1298189,2620.2,2620.1,13.85492]
[1723832154953,3.81424,2621.8,2620.9,3.81547]
[1723832155263,3.81392,2622.0,2621.3,3.81486]
[1723832155264,3.81403,2621.9,2621.3,3.81486]
[1723832155616,3.81403,2621.9,2621.2,2.405]
[1723832155617,3.81403,2621.9,2621.4,0.07628406]
[1723832155756,3.81403,2621.9,2621.2,2.405]
[1723832155757,3.81351,2622.3,2621.2,2.405]
[1723832155940,3.8147,2621.5,2621.2,2.405]
[1723832156308,3.81409,2621.9,2621.2,2.405]
[1723832156439,3.81379,2622.1,2621.3,3.8910925]
[1723832156638,3.81402,2621.9,2621.3,3.8910925]
[1723832156838,3.81422,2621.8,2621.3,0.0762925]
[1723832157034,3.8136,2622.2,2621.5,3.81449]
[1723832157240,3.81353,2622.3,2621.6,0.45772261]
[1723832157553,3.81318,2622.5,2621.6,0.45772261]
[1723832157554,7.62644,2622.5,2621.7,6.12279]
[1723832157738,3.9424289,2622.9,2622.0,3.8138]
[1723832157739,0.1298189,2622.9,2622.0,3.8138]
[1723832157935,0.1298189,2622.9,2622.1,3.88994751]
[1723832157936,3.81279,2622.8,2622.1,3.88994751]
[1723832158306,0.1298189,2622.9,2622.8,3.81271]
[1723832158497,0.1298189,2622.9,2622.8,2.3085]
[1723832158779,0.1298189,2622.9,2622.8,2.36701319]
[1723832158967,0.1298189,2622.9,2622.8,6.17972319]
[1723832159164,0.1298189,2622.9,2622.8,10.60688019]
[1723832159598,0.1298189,2622.9,2622.8,6.17972319]
[1723832160035,0.1298189,2622.9,2622.8,2.36701319]
[1723832160693,7.7549589,2622.9,2622.8,0.05851319]
[1723832161069,7.7549589,2622.9,2622.3,2.4855]
[1723832161070,0.1298189,2622.9,2622.3,2.4855]
[1723832161388,3.81344,2622.3,2621.8,2.4855]
[1723832161705,3.81402,2621.9,2621.3,2.4988]
[1723832162018,3.81475,2621.4,2621.3,2.4988]
[1723832162316,3.81475,2621.4,2620.6,7.63163]
[1723832162317,3.81475,2621.4,2620.8,2.4988]
[1723832162318,3.81476,2621.4,2620.8,2.4988]
[1723832162469,3.81456,2621.6,2620.9,0.3826]
[1723832162674,0.55,2622.3,2620.8,2.4988]
[1723832162675,3.81503,2621.3,2620.8,2.4988]
[1723832162876,0.381503,2621.3,2620.8,2.4988]
[1723832163175,3.81506,2621.2,2620.8,2.4988]
[1723832163374,3.81522,2621.1,2620.8,2.4988]
[1723832163573,3.81401,2622.0,2620.4,2.4151]
[1723832163574,3.81543,2621.0,2620.4,2.4151]
[1723832164400,3.81563,2620.8,2620.4,2.4151]
[1723832164729,4.196586,2621.2,2620.4,2.96312336]
[1723832164877,3.81508,2621.2,2620.5,4.68181395]
[1723832165077,3.81508,2621.2,2620.5,4.60547336]
[1723832165675,3.81508,2621.2,2620.5,8.42142336]
[1723832165876,3.81423,2621.8,2621.0,3.81533]
[1723832166116,3.81394,2622.0,2621.2,2.4272]
[1723832166305,2.4848,2622.6,2621.4,3.81475]
[1723832166505,3.81379,2622.1,2621.5,0.07627755]
[1723832166823,6.15071,2623.0,2621.5,0.07627755]
[1723832166824,2.3382,2623.0,2621.5,3.8145]
[1723832167025,2.3382,2623.0,2621.6,0.07626391]
[1723832167026,3.81309,2622.6,2621.6,0.07626391]
[1723832167210,3.81309,2622.6,2622.0,2.4386]
[1723832167571,3.81309,2622.6,2621.5,0.54802336]
[1723832167572,3.8137,2622.2,2621.5,2.3863]
[1723832167777,3.81391,2622.0,2621.5,5.3863]
[1723832168012,3.81391,2622.0,2621.5,2.3863]
[1723832168188,3.81455,2621.6,2621.3,3.0]
[1723832168388,3.81427,2621.8,2621.0,6.20149]
[1723832168709,3.81431,2621.7,2621.0,2.3863]
[1723832169214,7.62874,2621.7,2621.0,6.20163]
[1723832169425,7.62874,2621.7,2621.0,2.3863]
[1723832169426,3.81455,2621.6,2621.0,2.3863]
[1723832169788,3.81431,2621.7,2621.1,3.81516]
[1723832169992,3.81431,2621.7,2621.0,2.3863]
[1723832170225,0.381431,2621.6,2621.0,2.3863]
[1723832170407,3.81506,2621.2,2620.6,2.3439]
[1723832170783,3.55,2622.1,2620.6,2.3439]
[1723832170784,3.81491,2621.3,2620.6,6.15973]
[1723832171018,3.81508,2621.2,2620.6,2.3439]
[1723832171221,0.736395,2621.9,2620.6,2.3439]
[1723832171222,3.81501,2621.3,2620.6,2.3439]
[1723832171521,3.81508,2621.2,2620.6,2.3439]
[1723832171729,3.81437,2621.7,2620.6,2.3439]
[1723832171730,3.81553,2620.9,2620.6,2.3439]
[1723832171929,3.81524,2621.1,2620.6,2.3439]
[1723832172093,3.81492,2621.3,2620.6,2.3439]
[1723832172295,0.762858,2621.6,2620.6,2.3439]
[1723832172296,3.81469,2621.5,2620.7,3.8920539]
[1723832172635,3.81469,2621.5,2620.3,0.51302336]
[1723832172636,3.81536,2621.0,2620.3,0.51302336]
[1723832172835,3.81536,2621.0,2620.3,3.81633]
[1723832172836,3.81552,2620.9,2620.3,3.81633]
[1723832173121,3.81572,2620.8,2620.1,3.81652]
[1723832173488,8.012376,2621.0,2620.3,3.81634]
[1723832173683,3.8154,2621.0,2620.3,3.81634]
[1723832173886,3.81606,2620.5,2620.4,0.06020433]
[1723832174096,6.8148,2621.4,2619.5,2.4015]
[1723832174097,3.8166,2620.2,2619.5,2.4015]
[1723832174316,3.8166,2620.2,2619.5,6.21888]
[1723832174519,3.8166,2620.2,2619.5,2.4015]
[1723832174730,3.81688,2620.0,2619.5,2.4015]
[1723832175107,3.81717,2619.8,2619.5,2.4015]
[1723832175391,3.81717,2619.8,2619.1,2.3449]
[1723832176538,3.81686,2620.0,2619.4,3.81766]
[1723832176693,3.81654,2620.2,2619.5,0.07633656]
[1723832176893,3.81717,2619.8,2619.1,6.16299]
[1723832177201,3.81725,2619.7,2619.1,2.3449]
[1723832177392,0.381654,2620.1,2619.1,2.3449]
[1723832177393,3.81737,2619.6,2619.1,2.3449]
[1723832177701,3.81737,2619.6,2619.1,5.3449]
[1723832177899,7.63485,2619.6,2619.1,2.3449]
[1723832178605,3.81737,2619.6,2619.1,2.3449]
[1723832179550,3.81715,2619.8,2619.0,3.81811]
[1723832179694,4.198864,2619.8,2619.1,3.81808]
[1723832180045,6.81638,2620.3,2618.7,2.2812]
[1723832180046,3.81686,2620.0,2619.2,3.81794]
[1723832180350,3.81627,2620.4,2619.5,3.81743]
[1723832180644,2.3827,2621.0,2619.8,2.3009]
[1723832180862,3.81658,2620.2,2619.8,2.3009]
[1723832181136,3.81612,2620.5,2619.8,2.3009]
[1723832181292,3.81665,2620.1,2619.4,3.0]
[1723832181494,3.81665,2620.1,2619.4,3.81761]
[1723832181734,3.81676,2620.1,2619.4,3.81761]
[1723832182039,3.81676,2620.1,2619.3,2.4185]
[1723832182040,3.81702,2619.9,2619.3,2.4185]
[1723832182201,3.81702,2619.9,2619.3,6.77811]
[1723832182397,3.81702,2619.9,2619.3,2.96035]
[1723832182613,3.8167,2620.1,2619.4,3.89390915]
[1723832182834,3.8167,2620.1,2619.5,0.68542592]
[1723832183135,4.197541,2620.6,2619.2,3.0]
[1723832183136,2.373,2620.5,2619.2,5.4506]
[1723832183313,3.8171,2619.8,2619.2,2.4506]
[1723832183712,3.81723,2619.7,2619.2,2.4506]
[1723832183913,7.63454,2619.7,2619.2,2.4506]
[1723832184113,3.81753,2619.5,2619.2,2.4506]
[1723832184448,3.81723,2619.7,2619.2,2.4506]
[1723832184597,7.63455,2619.7,2619.2,2.4506]
[1723832184800,3.81723,2619.7,2619.2,2.4506]
[1723832185301,4.198953,2619.7,2619.2,2.4506]
[1723832185494,3.81723,2619.7,2619.2,2.4506]
[1723832185694,3.81702,2619.9,2619.2,2.4506]
[1723832185968,3.81702,2619.9,2619.3,0.07634235]
[1723832186144,3.81669,2620.1,2619.4,3.81766]
[1723832186440,3.81669,2620.1,2619.5,3.89385785]
[1723832186644,3.81641,2620.3,2619.6,3.81736]
[1723832186945,3.81641,2620.3,2619.6,3.81729]
[1723832187098,3.81641,2620.3,2619.4,7.63515]
[1723832187099,4.26375641,2620.3,2619.4,7.63515]
[1723832187298,3.81702,2619.9,2619.3,0.25269424]
[1723832187498,3.81702,2619.9,2619.2,6.26842]
[1723832187942,3.81708,2619.8,2619.2,6.26842]
[1723832188100,3.81702,2619.9,2619.2,6.26842]
[1723832188307,3.81732,2619.7,2619.2,2.4506]
[1723832188601,3.81732,2619.7,2619.3,0.06185015]
[1723832188847,3.81731,2619.7,2619.2,2.4506]
[1723832189028,3.81731,2619.7,2619.4,0.0617567]
[1723832189206,3.81752,2619.5,2618.8,2.4966]
[1723832189401,3.81732,2619.7,2618.9,0.06222402]
[1723832189652,3.8174,2619.6,2619.0,7.63632]
[1723832189854,3.81778,2619.4,2619.0,0.06213054]
[1723832190036,3.81778,2619.4,2618.9,3.81836]
[1723832190360,3.81745,2619.6,2619.1,0.0621386]
[1723832190566,3.81745,2619.6,2619.0,3.88037208]
[1723832190749,3.8175,2619.6,2619.2,0.06204514]
[1723832191063,3.8175,2619.6,2619.3,0.06195168]
[1723832191265,3.81783,2619.3,2618.8,2.4966]
[1723832191488,3.81798,2619.2,2618.8,2.4966]
[1723832192137,3.81783,2619.3,2618.8,2.4966]
[1723832192339,3.81774,2619.4,2618.8,7.328442]
[1723832192532,3.81746,2619.6,2618.8,6.31504]
[1723832192728,3.81746,2619.6,2619.0,3.81824]
[1723832192931,3.81763,2619.5,2618.8,10.13349]
[1723832193130,3.81746,2619.6,2618.8,6.946545]
[1723832193329,3.81746,2619.6,2619.0,3.81824]
[1723832193848,3.8176,2619.5,2618.8,10.764965]
[1723832194058,3.81746,2619.6,2618.9,4.711556]
[1723832194368,3.81686,2620.0,2619.2,3.81787]
[1723832194577,3.81686,2620.0,2618.9,0.893176]
[1723832194734,3.81664,2620.1,2619.4,3.81757]
[1723832194930,3.81626,2620.4,2619.6,3.81734]
[1723832195276,3.81626,2620.4,2619.5,2.44283344]
[1723832195277,3.81616,2620.5,2619.8,3.817]
[1723832195476,3.81587,2620.7,2620.0,3.81665]
[1723832195643,3.81587,2620.7,2620.1,0.381665]
[1723832195848,3.81616,2620.5,2619.8,3.81697]
[1723832196043,3.81637,2620.3,2619.6,7.87886334]
[1723832196369,3.81637,2620.3,2619.7,0.64281133]
[1723832196878,3.81637,2620.3,2619.5,2.3665]
[1723832196879,3.81583,2620.7,2619.5,2.3665]
[1723832197076,3.81583,2620.7,2619.2,6.81786]
[1723832197077,3.81724,2619.7,2619.2,3.0]
[1723832197285,3.81724,2619.7,2619.1,2.375]
[1723832197491,3.81715,2619.8,2619.2,3.81786]
[1723832197799,3.8173,2619.7,2619.1,2.375]
[1723832198090,3.81715,2619.8,2619.1,2.994313]
[1723832198447,7.63435,2619.8,2619.2,3.81795]
[1723832198643,3.81723,2619.7,2619.1,2.994313]
[1723832198972,3.81723,2619.7,2619.1,6.812333]
[1723832199161,3.81723,2619.7,2619.2,0.905368]
[1723832199794,7.63455,2619.7,2619.2,0.905368]
[1723832199947,3.81738,2619.6,2619.2,0.905368]
[1723832200151,3.81723,2619.7,2619.2,0.905368]
[1723832200352,3.8176,2619.5,2619.1,2.375]
[1723832200646,2.4598,2620.4,2619.2,0.0763494]
[1723832200647,3.81702,2619.9,2619.2,0.0763494]
[1723832200846,3.81702,2619.9,2619.2,7.87323]
[1723832200847,7.63406,2619.9,2619.2,7.87323]
[1723832201064,3.8168,2620.0,2619.1,2.375]
[1723832201266,3.81793,2619.3,2618.6,2.3592]
[1723832201476,0.38168,2619.9,2618.6,2.3592]
[1723832201709,3.81731,2619.7,2619.0,3.81824]
[1723832201994,3.81745,2619.6,2619.0,3.81824]
[1723832202159,3.81731,2619.7,2618.7,0.27418]
[1723832202160,3.8178,2619.4,2618.7,0.27418]
[1723832202359,7.63559,2619.4,2618.7,0.27418]
[1723832202603,3.81779,2619.4,2618.8,3.81845]
[1723832202888,3.81745,2619.6,2619.0,3.81822]
[1723832202889,3.81747,2619.6,2619.0,3.81822]
[1723832203054,3.81747,2619.6,2618.9,0.709263]
[1723832203390,3.81792,2619.3,2618.7,3.27418]
[1723832203982,3.81708,2619.8,2619.1,3.81808]
[1723832204188,3.0,2620.3,2619.3,3.81777]
[1723832204189,3.81686,2620.0,2619.3,3.81777]
[1723832204358,3.81686,2620.0,2619.4,0.381777]
[1723832204359,7.63376,2620.0,2619.4,0.381777]
[1723832204563,3.81686,2620.0,2619.4,0.06194668]
[1723832204950,3.81704,2619.9,2619.4,0.06194668]
[1723832205151,7.6341,2619.9,2619.4,0.06194668]
[1723832205401,3.81703,2619.9,2619.4,0.06194668]
[1723832205564,3.81727,2619.7,2619.4,0.06194668]
[1723832205752,3.81752,2619.5,2619.4,0.06194668]
[1723832205953,3.81644,2620.3,2618.9,2.2834]
[1723832205954,3.81705,2619.9,2618.9,2.2834]
[1723832206148,7.63523,2619.5,2619.4,0.06194668]
[1723832206390,3.81782,2619.3,2618.9,2.2834]
[1723832206687,7.63576,2619.3,2618.9,2.2834]
[1723832206894,3.81799,2619.2,2618.9,2.2834]
[1723832207195,3.81782,2619.3,2618.9,2.2834]
[1723832207347,3.8176,2619.5,2618.9,2.2834]
[1723832207691,3.81774,2619.4,2618.9,2.2834]
[1723832209392,3.81782,2619.3,2618.9,3.193592]
[1723832209574,3.81782,2619.3,2618.9,2.2834]
[1723832209747,3.81768,2619.4,2618.9,2.2834]
[1723832209953,3.81768,2619.4,2618.9,3.193586]
[1723832211556,7.63525,2619.5,2618.9,3.193586]
[1723832211755,3.81732,2619.7,2619.0,3.81822]
[1723832211955,3.81732,2619.7,2619.0,4.432665]
[1723832211956,3.81738,2619.6,2619.0,4.432665]
[1723832212258,3.81757,2619.5,2619.0,0.614495]
[1723832212885,3.81757,2619.5,2618.9,6.10171]
[1723832213392,3.81757,2619.5,2619.0,3.81825]
[1723832213766,3.81757,2619.5,2618.9,6.10178]
[1723832214202,7.63516,2619.5,2618.9,6.10178]
[1723832214493,3.81731,2619.7,2619.1,3.81808]
[1723832214697,3.817,2619.9,2619.3,3.81773]
[1723832214910,6.27608,2620.4,2619.5,2.3858]
[1723832214911,3.81632,2620.4,2619.5,2.3858]
[1723832215054,3.81632,2620.4,2619.8,3.817]
[1723832215255,3.816,2620.6,2620.0,3.81676]
[1723832215565,3.81578,2620.7,2620.1,2.3858]
[1723832215793,3.81578,2620.7,2620.1,10.01899]
[1723832215954,3.81578,2620.7,2620.1,6.20235]
[1723832216391,3.81578,2620.7,2620.2,0.07631821]
[1723832216899,3.81578,2620.7,2620.1,6.20235]
[1723832217107,4.826353,2621.1,2620.1,3.006035]
[1723832217256,3.81525,2621.1,2620.5,3.81594]
[1723832217460,2.4439,2621.7,2620.3,3.81626]
[1723832217461,3.8147,2621.5,2620.9,3.8154]
[1723832217696,3.81437,2621.7,2621.1,3.81519]
[1723832218053,3.81437,2621.7,2621.0,6.28271]
[1723832218054,3.81448,2621.6,2621.0,6.28271]
[1723832218287,3.81461,2621.5,2621.0,2.4675]
[1723832218496,3.81492,2621.3,2621.0,2.4675]
[1723832218668,3.81492,2621.3,2621.1,0.06011024]
[1723832218858,7.63008,2621.2,2621.1,0.06011024]
[1723832219360,7.63008,2621.2,2620.1,6.28412]
[1723832219361,3.8158,2620.7,2620.1,6.28412]
[1723832219562,3.8158,2620.7,2620.2,3.0]
[1723832219763,7.63166,2620.7,2620.2,0.06094883]
[1723832219974,3.8158,2620.7,2620.2,0.06094883]
[1723832220379,3.81535,2621.0,2620.2,8.32828871]
[1723832220580,3.81506,2621.2,2620.4,3.81612]
[1723832220786,3.81506,2621.2,2620.5,0.381612]
[1723832220981,3.81506,2621.2,2620.5,0.44228069]
[1723832221264,9.08055,2621.7,2620.7,2.477]
[1723832221265,3.8144,2621.7,2620.7,2.477]
[1723832221465,3.81428,2621.8,2621.0,3.81525]
[1723832221876,3.81469,2621.5,2621.1,0.06010861]
[1723832222068,2.4574,2622.4,2621.1,0.06010861]
[1723832222069,7.62852,2621.8,2621.1,3.81509]
[1723832222266,7.62852,2621.8,2621.0,3.81524]
[1723832222267,3.81396,2622.0,2621.4,3.81473]
[1723832222515,3.81405,2621.9,2621.5,0.629173]
[1723832222666,3.81405,2621.9,2621.2,4.33849435]
[1723832222667,3.81432,2621.7,2621.2,0.06001528]
[1723832222865,3.81432,2621.7,2620.5,2.477]
[1723832222866,3.8145,2621.6,2620.5,2.477]
[1723832223094,3.81475,2621.4,2621.3,0.05992197]
[1723832223296,3.81527,2621.1,2620.6,3.0]
[1723832223565,3.81527,2621.1,2620.5,6.106318]
[1723832223725,4.4799652,2621.5,2620.7,0.06048197]
[1723832223726,0.6653452,2621.5,2620.7,0.06048197]
[1723832223870,3.81589,2620.7,2620.5,2.477]
[1723832224214,3.81589,2620.7,2620.1,2.3432]
[1723832224215,3.81616,2620.5,2620.1,2.3432]
[1723832224413,3.81585,2620.7,2620.1,6.923173]
[1723832224414,7.63171,2620.7,2620.1,6.923173]
[1723832224613,3.81558,2620.9,2620.1,3.106543]
[1723832224789,3.81558,2620.9,2620.2,3.81637]
[1723832224790,3.81581,2620.7,2620.2,3.81637]
[1723832224993,0.3381432,2621.5,2620.4,3.81608]
[1723832224994,7.63049,2621.1,2620.4,3.81608]
[1723832225295,3.81499,2621.3,2620.5,0.381608]
[1723832225489,3.81499,2621.3,2620.1,6.15981]
[1723832225490,3.81541,2621.0,2620.4,3.8162]
[1723832225815,7.63032,2621.2,2620.4,4.879374]
[1723832226028,3.81514,2621.2,2620.4,4.879374]
[1723832226182,6.8145,2621.6,2620.2,6.81639]
[1723832226382,3.8157,2620.8,2620.2,6.81639]
[1723832226600,0.55,2621.5,2620.2,6.81639]
[1723832226601,3.81593,2620.6,2620.2,3.0]
[1723832226825,3.81613,2620.5,2620.1,2.3432]
[1723832227033,3.81593,2620.6,2620.1,2.3432]
[1723832227623,7.63198,2620.6,2620.1,2.3432]
[1723832227829,3.81593,2620.6,2620.1,2.3432]
[1723832228118,3.81537,2621.0,2620.3,3.81634]
[1723832228328,3.81527,2621.1,2620.5,3.81596]
[1723832228525,3.81571,2620.8,2620.2,4.05075]
[1723832228734,3.81511,2621.2,2620.1,2.3432]
[1723832229022,3.81511,2621.2,2619.8,3.81708]
[1723832229023,3.81636,2620.3,2619.8,3.81708]
[1723832229236,3.81648,2620.3,2619.9,3.0]
[1723832229397,3.81667,2620.1,2619.7,2.4148]
[1723832229925,3.8156,2620.9,2619.7,2.4148]
[1723832230082,3.81618,2620.5,2619.8,3.81694]
[1723832230279,3.81618,2620.5,2619.7,2.4148]
[1723832230280,3.8161,2620.5,2619.7,2.4148]
[1723832230482,3.81637,2620.3,2619.9,0.0610325]
[1723832230790,3.81637,2620.3,2619.8,0.06112591]
[1723832230992,4.57209012,2620.7,2620.0,3.81674]
[1723832231239,4.57209012,2620.7,2620.0,4.580113]
[1723832231240,3.81606,2620.5,2620.0,4.580113]
[1723832231528,3.0,2620.8,2620.1,0.06084569]
[1723832231529,3.81635,2620.3,2620.1,0.06084569]
[1723832231679,7.63281,2620.3,2620.1,0.06084569]
[1723832231879,7.63281,2620.3,2619.7,6.23203]
[1723832231880,3.81652,2620.2,2619.7,2.4148]
[1723832232078,0.3,2620.7,2619.7,2.4148]
[1723832232079,3.81631,2620.4,2620.2,0.0607523]
[1723832232274,3.81631,2620.4,2619.7,2.4148]
[1723832232275,3.81672,2620.1,2619.7,2.4148]
[1723832232513,7.63283,2620.3,2619.7,2.4148]
[1723832232778,3.81672,2620.1,2619.8,0.06112591]
[1723832233199,3.81645,2620.3,2619.7,2.4148]
[1723832233400,3.81614,2620.5,2619.9,0.0610325]
[1723832233627,3.81635,2620.3,2619.8,0.06112591]
[1723832233938,3.81593,2620.6,2620.0,0.06093909]
[1723832234232,3.81593,2620.6,2619.7,3.419713]
[1723832234233,3.81606,2620.5,2619.9,0.0610325]
[1723832234383,3.81606,2620.5,2620.1,0.06084569]
[1723832234577,3.81606,2620.5,2619.9,3.81693]